Cogmind - Beta 13 @@@ ROGUE MODE // 2024.04.05 @ 12:04:00 Player: Aklangi Result: Destroyed by B-75 Beast with Heavy Machine Gun Performance ------------- Evolutions (4) 2000 Regions Visited (11) 2200 Robots Destroyed (36) 180 Value Destroyed (1055) 1055 Prototype IDs (11) 220 Alien Tech Used (0) 0 Bonus (670) 670 TOTAL SCORE: 6325 Bonus ------- High Alert Combat Kills 24 Follower Combat Kills 146 Entered Garrisons 200 Aligned with FarCom 300 Cogmind --------- Core Integrity 0/850 Matter 0/300 Energy 100/100 System Corruption 23% Temperature Cool (0) Movement Flying (35) Location -6/Factory Parts ------- > --- POWER (2) -------- (None) > --- PROPULSION (5) --- VTOL Module > --- UTILITY (6) ------ (None) > --- WEAPON (2) ------- (None) > --- INVENTORY (5) ---- Light Ion Engine Improved Particle Charger Improved Heavy Machine Gun Remote Datajack Peak State ------------ > --- POWER ------------ Light Nuclear Core Light Nuclear Core > --- PROPULSION ------- Improved VTOL Module Flying Fortress v7 > --- UTILITY ---------- Improved Heat Sink Medium Storage Unit Reaction Control System Heavy Armor Plating Hardened Medium Armor Plating > --- WEAPON ----------- Plasma Rifle Improved Heavy Machine Gun > --- INVENTORY -------- Light Nuclear Core Cesium-ion Thruster Nuclear Pulse Thruster Small Storage Unit Experimental Sensor Array Gauss Rifle Heavy Missile Launcher Remote Datajack Flail [Rating: 72] Favorites ----------- Power Light Nuclear Core Engine Ion Engine Power Core Light Nuclear Core Propulsion Light Treads Treads Light Treads Flight Unit Flying Fortress v7 Utility Medium Storage Unit Device Reaction Control System Storage Medium Storage Unit Processor Terrain Scan Processor Protection Hardened Medium Armor Plating Weapon Light Assault Rifle Energy Gun Small Laser Energy Cannon Improved EM Pulse Cannon Ballistic Gun Light Assault Rifle Launcher Heavy Missile Launcher Impact Weapon Flail Build | -11 -10 -10 -10 -9 -8 -7 -7 -7 -6 -6 -6 ------- Run | Yrd Mat Min Exi Min Mat Fac Low Low Fac Gar Fac Slots Evolved 8 | . . . . . 4 2 . . 2 . . Power 1 | . . . . . . 1 . . . . . Propulsion 3 | . . . . . 2 1 . . . . . Utility 4 | . . . . . 2 . . . 2 . . Weapon . | . . . . . . . . . . . . Parts Attached 69 | 6 1 1 3 1 15 8 2 . 9 8 15 Power 11 | 1 . . . . 2 2 1 . 1 1 3 Engine 4 | 1 . . . . . . . . . . 3 Core 7 | . . . . . 2 2 1 . 1 1 . Reactor . | . . . . . . . . . . . . Propulsion 10 | 2 . . . . 1 2 . . . 3 2 Treads 3 | 2 . . . . . . . . . . 1 Leg . | . . . . . . . . . . . . Wheel . | . . . . . . . . . . . . Hover . | . . . . . . . . . . . . Flight 7 | . . . . . 1 2 . . . 3 1 Utility 23 | 1 1 . 1 1 6 1 1 . 2 2 7 Device 11 | . . . 1 1 2 1 1 . 1 1 3 Storage 5 | 1 1 . . . . . . . . 1 2 Processor 2 | . . . . . . . . . . . 2 Hackware . | . . . . . . . . . . . . Protection 5 | . . . . . 4 . . . 1 . . Artifact . | . . . . . . . . . . . . Weapon 25 | 2 . 1 2 . 6 3 . . 6 2 3 Energy Gun 3 | 1 . . . . . . . . 1 . 1 Energy Cannon 2 | . . . 1 . . 1 . . . . . Ballistic Gun 14 | 1 . 1 1 . 4 2 . . 3 . 2 Ballistic Cannon . | . . . . . . . . . . . . Launcher 1 | . . . . . . . . . . 1 . Special Weapon . | . . . . . . . . . . . . Impact Weapon 5 | . . . . . 2 . . . 2 1 . Slashing Weapon . | . . . . . . . . . . . . Piercing Weapon . | . . . . . . . . . . . . Special Melee Weapon . | . . . . . . . . . . . . Unidentified Prototypes 7 | . . . 2 1 1 1 . . 1 . 1 Parts Lost 8 | . . . . . . . . . . 5 3 Power 1 | . . . . . . . . . . 1 . Propulsion 2 | . . . . . . . . . . 2 . Utility 5 | . . . . . . . . . . 2 3 Weapon . | . . . . . . . . . . . . Highest Loss Streak 4 | . . . . . . . . . . 4 3 To Critical Strikes . | . . . . . . . . . . . . Average Slot Usage (%) 69 | . 86 85 85 88 61 76 76 76 70 51 47 Engine 6 | . 14 14 14 14 2 . . . . . 7 Core 4 | . . . . . 6 15 15 15 13 8 . Treads 11 | . 28 28 28 28 . . . . . . 5 Flight 5 | . . . . . 9 15 15 15 13 12 . Device 8 | . . . . 3 9 8 15 15 13 10 14 Storage 9 | . 15 14 14 14 9 7 7 7 6 5 4 Processor 1 | . . . . . . . . . . . 4 Protection 3 | . . . . . 7 13 7 7 12 7 . Energy Gun 3 | . 14 14 8 . . . . . 1 . . Ballistic Gun 12 | . 14 14 19 28 16 14 7 7 7 2 8 Naked Turns 20 | . . . . . . . . . . 9 11 Heaviest Build 53 | 12 22 17 17 18 31 41 41 41 53 50 42 Greatest Support 55 | 40 40 40 40 40 50 55 55 55 55 55 42 Greatest Overweight (x) 3 | 1 . . . . . . . . . 3 2 Average Overweight (x) . | . . . . . . . . . . . . Largest Inventory Capacity 10 | 8 10 10 10 10 10 10 10 10 10 10 8 Average Capacity 9 | 7 9 10 10 10 10 10 10 10 10 9 7 Most Carried 10 | . 7 9 10 10 10 10 10 9 10 7 4 Average Carried 6 | . 5 8 9 10 7 6 9 9 7 5 2 Final Capacity 10 | 8 10 10 10 10 10 10 10 10 10 5 5 Final Carried 10 | . 7 9 10 10 10 9 9 9 7 3 4 Class Distribution -------------------- 82% | Mutant 14% | Scout Dominant Class ---------------- Mutant | -10/Materials Mutant | -10/Mines Mutant | -10/Exiles Mutant | -9/Mines Scout | -8/Materials Scout | -7/Factory Mutant | -7/Lower Caves Mutant | -7/Lower Caves Mutant | -6/Factory Mutant | -6/Garrison Mutant | -6/Factory Resources | -11 -10 -10 -10 -9 -8 -7 -7 -7 -6 -6 -6 ----------- Run | Yrd Mat Min Exi Min Mat Fac Low Low Fac Gar Fac Matter Collected 1016 | 216 73 14 . 40 184 187 104 . 84 66 48 Remotely . | . . . . . . . . . . . . Salvage Created 1119 | . 209 41 . 33 199 123 186 . 126 129 73 Parts 77 | . 17 7 . 1 17 6 11 . 7 5 6 Haulers Intercepted 5 | . 1 . . . 1 2 . . 1 . . Recyclers Shooed . | . . . . . . . . . . . . Parts Field Recycled . | . . . . . . . . . . . . Retrieved Matter . | . . . . . . . . . . . . Parts Self-Destructed 9 | . . . . . . . 9 . . . . Prevented 7 | . . . . . . . 7 . . . . Kills | -11 -10 -10 -10 -9 -8 -7 -7 -7 -6 -6 -6 ------- Run | Yrd Mat Min Exi Min Mat Fac Low Low Fac Gar Fac Combat Hostiles Destroyed 27 | . 3 3 . 1 5 1 6 . 1 5 2 Melee 1 | . . . . . . . . . . 1 . Guns 18 | . 3 3 . 1 5 1 2 . 1 . 2 Cannons 4 | . . . . . . . 4 . . . . AOE 3 | . . . . . . . . . . 3 . Classes Destroyed 11 | . 5 1 . . 2 . . . 1 1 1 Worker 1 | . 1 . . . . . . . . . . Builder 1 | . . . . . . . . . . . 1 Hauler 5 | . 1 . . . 1 2 . . 1 . . Operator 2 | . 1 . . . . . . . 1 . . Drone 1 | . . . . . . . . . 1 . . Watcher 1 | . 1 . . . . . . . . . . Swarmer 13 | . . 3 . . 3 . 5 . . . 2 Cutter 3 | . . . . . . . . . . 3 . Grunt 8 | . 3 . . 1 . 1 1 . . 2 . Sentry 1 | . . . . . 1 . . . . . . Hunter 1 | . . . . . 1 . . . . . . Best Kill Streak 4 | . 2 3 . 1 4 2 4 . 2 3 2 Combat Bots Only 4 | . 1 3 . 1 4 1 4 . 1 3 2 Max Kills in Single Turn 3 | . 2 1 . 1 1 1 1 . 1 3 1 Gunslinging . | . . . . . . . . . . . . Exploded 3 | . . . . . . . . . . 3 . Melee 1 | . . . . . . . . . . 1 . Uniques/NPCs Destroyed . | . . . . . . . . . . . . Combat | -11 -10 -10 -10 -9 -8 -7 -7 -7 -6 -6 -6 -------- Run | Yrd Mat Min Exi Min Mat Fac Low Low Fac Gar Fac Hostile Shots Fired 299 | . 11 9 . 4 60 5 28 1 31 119 31 Missed 105 | . 4 1 . 2 18 1 12 1 14 39 13 Damage Taken 3479 | . 145 54 . 20 715 61 242 . 412 1389 441 Core 1041 | . 46 19 . . 95 . 15 . 75 695 96 Absorbed by Shields 163 | . . . . . . . . . . 163 . Redirected to Shielding 11 | . . . . . 11 . . . . . . Core Remaining (%) 88 | 100 . . . 74 82 . . 97 . . . Volleys Fired 104 | . 19 4 . 5 21 7 16 . 17 4 11 Largest 2 | . 2 2 . 2 2 2 2 . 2 1 2 Hottest 103 | . 60 60 . 40 51 53 97 . 103 39 90 Shots Fired 201 | . 38 8 . 10 41 14 32 . 33 4 21 Gun 184 | . 38 8 . 10 41 14 16 . 33 3 21 Cannon 16 | . . . . . . . 16 . . . . Launcher 1 | . . . . . . . . . . 1 . Special . | . . . . . . . . . . . . Kinetic 140 | . 19 4 . 10 41 14 16 . 17 3 16 Thermal 44 | . 19 4 . . . . . . 16 . 5 Explosive 1 | . . . . . . . . . . 1 . Electromagnetic 16 | . . . . . . . 16 . . . . Robot Hit Streak 9 | . 9 1 . 3 5 6 9 . 4 6 7 Robot Miss Streak 5 | . 2 2 . 3 3 1 2 . 5 . 3 Penetration Max 1 | . . . . . 1 . . . . . . Secondary Targets 2 | . . . . . . . . . . . 2 Max Gunslinging Chain 1 | . . . . . . . . . . . 1 Shots Hit Robots 126 | . 23 3 . 5 26 10 18 . 15 14 12 Core Hits 64 | . 12 3 . 4 13 5 7 . 8 6 6 Critical Kills 1 | . . . . . . . . . . 1 . Critical Parts Destroyed 1 | . . . . . . . . . . 1 . Critical Strikes 5 | . . . . . . . . . 2 2 1 Burn 3 | . . . . . . . . . 2 . 1 Smash 2 | . . . . . . . . . . 2 . Melee Attacks 34 | . . . . . 6 . . . 5 23 . Impact 34 | . . . . . 6 . . . 5 23 . Slashing . | . . . . . . . . . . . . Piercing . | . . . . . . . . . . . . Sneak Attacks 1 | . . . . . . . . . 1 . . Combat Hostiles . | . . . . . . . . . . . . Follow-up Attacks . | . . . . . . . . . . . . Damage Inflicted 2864 | . 395 49 . 38 423 193 406 . 370 634 356 Guns 1639 | . 239 49 . 38 319 193 133 . 312 43 313 Cannons 273 | . . . . . . . 273 . . . . Explosions 384 | . 156 . . . . . . . . 228 . Melee 525 | . . . . . 104 . . . 58 363 . Ramming 43 | . . . . . . . . . . . 43 Kinetic 1183 | . 93 27 . 38 319 193 133 . 136 43 201 Thermal 456 | . 146 22 . . . . . . 176 . 112 Explosive 384 | . 156 . . . . . . . . 228 . Electromagnetic 273 | . . . . . . . 273 . . . . Impact 525 | . . . . . 104 . . . 58 363 . Slashing . | . . . . . . . . . . . . Piercing . | . . . . . . . . . . . . Highest Corruption 23 | . . . . . . . . . 8 13 23 Average Corruption 12 | . . . . . . . . . 7 9 15 Corruption Purged . | . . . . . . . . . . . . Corruption Blocked . | . . . . . . . . . . . . Effects 48 | . . . . . . . . . 9 8 31 Message Errors 14 | . . . . . . . . . 3 4 7 Matter Fused 9 | . . . . . . . . . . 3 6 Heat Flow Errors 7 | . . . . . . . . . 1 . 6 Energy Discharges 5 | . . . . . . . . . 3 . 2 Data Loss (minor) 2 | . . . . . . . . . . . 2 Data Loss (major) 7 | . . . . . . . . . 2 . 5 Misfires 1 | . . . . . . . . . . . 1 Alerts 1 | . . . . . . . . . . . 1 Misdirections 2 | . . . . . . . . . . 1 1 Overload Shots . | . . . . . . . . . . . . Overflow Damage 38 | . . . . . . . 4 . . 34 . Projectiles 4 | . . . . . . . 4 . . . . Explosions 5 | . . . . . . . . . . 5 . Melee 29 | . . . . . . . . . . 29 . Knockbacks 3 | . . . . . 2 . . . . 1 . Impact 2 | . . . . . 1 . . . . 1 . Kinetic . | . . . . . . . . . . . . Secondary 1 | . . . . . 1 . . . . . . Self-Inflicted Damage 119 | . 63 . . . . . . . . 56 . Shots 2 | . 1 . . . . . . . . 1 . Rammed 3 | . . . . . . . . . . . 3 Targets Rammed 3 | . . . . . . . . . . . 3 Kicked . | . . . . . . . . . . . . Crushed . | . . . . . . . . . . . . Highest Temperature 616 | . 40 20 . 6 52 156 282 . 616 6 282 Average Temperature 105 | . 20 15 . 6 15 52 97 . 220 3 110 Received Heat Transfer 779 | . 42 . . 12 171 36 63 . 126 212 117 Effects 8 | . . . . . . . . . 8 . . Shutdowns 4 | . . . . . . . . . 4 . . Interference 3 | . . . . . . . . . 3 . . Short Circuit 1 | . . . . . . . . . 1 . . Siege Activations . | . . . . . . . . . . . . Robots Corrupted . | . . . . . . . . . . . . Combat Hostiles . | . . . . . . . . . . . . Parts Fried 3 | . . . . . . . 2 . . 1 . Impact Corruptions 4 | . . . . . 1 . . . . 3 . Robots Melted . | . . . . . . . . . . . . Combat Hostiles . | . . . . . . . . . . . . Parts Melted . | . . . . . . . . . . . . Heat Transferred 1325 | . 325 50 . . . . . . 600 . 350 Parts Sabotaged . | . . . . . . . . . . . . Parts Stolen . | . . . . . . . . . . . . Parts Stripped . | . . . . . . . . . . . . Power Chain Reactions . | . . . . . . . . . . . . Alert | -11 -10 -10 -10 -9 -8 -7 -7 -7 -6 -6 -6 ------- Run | Yrd Mat Min Exi Min Mat Fac Low Low Fac Gar Fac Peak Influence 502 | . 198 87 . 20 285 236 . . 470 502 263 Initial 329 | . . 17 . . 7 129 . . 256 329 258 Average 155 | . 65 84 . 9 144 169 . . 312 386 157 Maximum Alert Level 2 | . . . . . 1 1 . . 2 2 1 Low Security (%) 59 | 100 100 100 . 100 48 75 . . . . 52 Level 1 35 | . . . . . 51 24 . . 89 53 47 Level 2 4 | . . . . . . . . . 10 46 . Level 3 . | . . . . . . . . . . . . Level 4 . | . . . . . . . . . . . . Level 5 . | . . . . . . . . . . . . High Security . | . . . . . . . . . . . . Max Security . | . . . . . . . . . . . . Squads Dispatched 9 | . 1 . . . 2 . . . 4 . 2 Investigation . | . . . . . . . . . . . . Extermination 1 | . . . . . . . . . . . 1 Reinforcement 7 | . 1 . . . 2 . . . 3 . 1 Assault 1 | . . . . . . . . . 1 . . Garrison . | . . . . . . . . . . . . Intercept . | . . . . . . . . . . . . Searches Triggered . | . . . . . . . . . . . . Construction Impeded . | . . . . . . . . . . . . Haulers Reinforced 1 | . . . . . . . . . 1 . . Active Scanning Responses . | . . . . . . . . . . . . Cargo Convoy Interrupts . | . . . . . . . . . . . . Stealth | -11 -10 -10 -10 -9 -8 -7 -7 -7 -6 -6 -6 --------- Run | Yrd Mat Min Exi Min Mat Fac Low Low Fac Gar Fac Distress Signals 3 | . 2 . . . 1 . . . . . . Communications Jammed . | . . . . . . . . . . . . Distress Signals . | . . . . . . . . . . . . Times Spotted 85 | . 10 2 . 2 14 6 13 2 8 12 16 Peak Tracking Total 12 | . 4 2 . 2 5 2 4 3 4 12 6 Tactical Retreats 17 | . 1 . . . 3 1 2 1 4 1 4 Traps | -11 -10 -10 -10 -9 -8 -7 -7 -7 -6 -6 -6 ------- Run | Yrd Mat Min Exi Min Mat Fac Low Low Fac Gar Fac Traps Triggered 7 | . . . . . . . . . 2 4 1 Indirectly . | . . . . . . . . . . . . Trap Hack Attempts . | . . . . . . . . . . . . Triggered . | . . . . . . . . . . . . Disarmed . | . . . . . . . . . . . . Reprogrammed . | . . . . . . . . . . . . Reused . | . . . . . . . . . . . . Traps Extracted . | . . . . . . . . . . . . Installed . | . . . . . . . . . . . . Triggered 1 | . . . . . . . 1 . . . . Machines | -11 -10 -10 -10 -9 -8 -7 -7 -7 -6 -6 -6 ---------- Run | Yrd Mat Min Exi Min Mat Fac Low Low Fac Gar Fac Machines Disabled 5 | . 1 . . . 1 . . . 2 1 . Max in Single Turn 1 | . 1 . . . 1 . . . 1 1 . Garrison Relay 1 | . . . . . . . . . . 1 . Machines Repaired . | . . . . . . . . . . . . Machines Dismantled . | . . . . . . . . . . . . Machines Sabotaged . | . . . . . . . . . . . . Overloaded Fab Kills . | . . . . . . . . . . . . Hacking | -11 -10 -10 -10 -9 -8 -7 -7 -7 -6 -6 -6 --------- Run | Yrd Mat Min Exi Min Mat Fac Low Low Fac Gar Fac Machines Accessed 22 | . 6 . . . 4 3 2 . 6 . 1 Terminals 18 | . 6 . . . 3 3 . . 5 . 1 Fabricators . | . . . . . . . . . . . . Repair Stations . | . . . . . . . . . . . . Recycling Units . | . . . . . . . . . . . . Scanalyzers 1 | . . . . . 1 . . . . . . Garrison Access 1 | . . . . . . . . . 1 . . Total Hacks 58 | . 21 . . . 10 4 11 . 10 . 2 Successful 39 | . 13 . . . 7 2 11 . 5 . 1 Failed 19 | . 8 . . . 3 2 . . 5 . 1 Catastrophic 7 | . 2 . . . 1 2 . . 1 . 1 Database Lockouts . | . . . . . . . . . . . . Manual 6 | . 3 . 1 . 1 . . . . . 1 Terminals 44 | . 21 . . . 8 4 . . 9 . 2 Fabricators . | . . . . . . . . . . . . Repair Stations . | . . . . . . . . . . . . Recycling Units . | . . . . . . . . . . . . Scanalyzers 2 | . . . . . 2 . . . . . . Garrison Access 1 | . . . . . . . . . 1 . . Terminal Hacks 36 | . 13 . . . 5 2 11 . 4 . 1 Record 15 | . . . . . 1 2 10 . 2 . . Robot Analysis 1 | . 1 . . . . . . . . . . Prototype ID Bank 2 | . 2 . . . . . . . . . . Open Door 1 | . . . . . . . 1 . . . . Open DSF 1 | . . . . . . . . . 1 . . Branch Access Points 1 | . 1 . . . . . . . . . . Emergency Access Points 2 | . . . . . 1 . . . 1 . . Alert Level 3 | . 2 . . . 1 . . . . . . Locate Traps 4 | . 2 . . . 1 . . . . . 1 Dispatch Records 1 | . 1 . . . . . . . . . . Transport Status 1 | . 1 . . . . . . . . . . Recall Investigation 1 | . . . . . 1 . . . . . . Registered Components 1 | . 1 . . . . . . . . . . Zone Layout 2 | . 2 . . . . . . . . . . Fabricator Hacks . | . . . . . . . . . . . . Repair Station Hacks . | . . . . . . . . . . . . Recycling Unit Hacks . | . . . . . . . . . . . . Scanalyzer 2 | . . . . . 2 . . . . . . Insert Component 1 | . . . . . 1 . . . . . . Analyze 1 | . . . . . 1 . . . . . . Garrison Access Hacks 1 | . . . . . . . . . 1 . . Unlock Access 1 | . . . . . . . . . 1 . . Unauthorized Hacks . | . . . . . . . . . . . . Terminals . | . . . . . . . . . . . . Fabricators . | . . . . . . . . . . . . Repair Stations . | . . . . . . . . . . . . Recycling Units . | . . . . . . . . . . . . Scanalyzers . | . . . . . . . . . . . . Garrison Access . | . . . . . . . . . . . . Data Cores Recovered . | . . . . . . . . . . . . Used . | . . . . . . . . . . . . Hacking Detections 17 | . 5 . . . 3 3 . . 6 . . Full Trace Events . | . . . . . . . . . . . . Feedback Events . | . . . . . . . . . . . . Feedback Blocked . | . . . . . . . . . . . . Robot Schematics Acquired . | . . . . . . . . . . . . Robots Built . | . . . . . . . . . . . . Authchips . | . . . . . . . . . . . . Time . | . . . . . . . . . . . . Total Robot Build Rating . | . . . . . . . . . . . . Part Schematics Acquired 1 | . . . . . 1 . . . . . . Parts Built . | . . . . . . . . . . . . Authchips . | . . . . . . . . . . . . Time . | . . . . . . . . . . . . Total Part Build Rating . | . . . . . . . . . . . . Parts Repaired . | . . . . . . . . . . . . Time . | . . . . . . . . . . . . Parts Recycled . | . . . . . . . . . . . . Recycled Matter . | . . . . . . . . . . . . Retrieved Matter . | . . . . . . . . . . . . Retrieved Components . | . . . . . . . . . . . . Parts Scanalyzed 1 | . . . . . 1 . . . . . . Part Schematics Acquired 1 | . . . . . 1 . . . . . . Parts Damaged . | . . . . . . . . . . . . Bothacking | -11 -10 -10 -10 -9 -8 -7 -7 -7 -6 -6 -6 ------------ Run | Yrd Mat Min Exi Min Mat Fac Low Low Fac Gar Fac Used RIF Installer . | . . . . . . . . . . . . Robots Hacked . | . . . . . . . . . . . . Non-combat . | . . . . . . . . . . . . Combat . | . . . . . . . . . . . . Robot Hacks Applied . | . . . . . . . . . . . . Relay Couplers Released 5 | . . . . . . . . . . 5 . Machine Destruction 5 | . . . . . . . . . . 5 . Fabnet Peak Effective % . | . . . . . . . . . . . . Robots Rewired . | . . . . . . . . . . . . Allies Hacked . | . . . . . . . . . . . . Hacks Repelled . | . . . . . . . . . . . . Allies | -11 -10 -10 -10 -9 -8 -7 -7 -7 -6 -6 -6 -------- Run | Yrd Mat Min Exi Min Mat Fac Low Low Fac Gar Fac Total Allies 2 | . . . . . . . 2 . . . . Largest Group 2 | . . . . . . . 2 2 . . . Highest-Rated Group 62 | . . . . . . . 62 62 . . . Highest-Rated Ally 31 | . . . . . . . 31 31 . . . Total Orders . | . . . . . . . . . . . . Ally Attacks 28 | . . . . . . . 28 . . . . Total Damage 424 | . . . . . . . 424 . . . . Kills 5 | . . . . . . . 5 . . . . Allies Corrupted . | . . . . . . . . . . . . Allies Melted . | . . . . . . . . . . . . Intel | -11 -10 -10 -10 -9 -8 -7 -7 -7 -6 -6 -6 ------- Run | Yrd Mat Min Exi Min Mat Fac Low Low Fac Gar Fac Robot Analysis Total 1 | . 1 . . . . . . . . . . Derelict Logs Recovered 2 | . . . . . . . 1 1 . . . Drone Launches . | . . . . . . . . . . . . Drone Recoveries . | . . . . . . . . . . . . Exploration | -11 -10 -10 -10 -9 -8 -7 -7 -7 -6 -6 -6 ------------- Run | Yrd Mat Min Exi Min Mat Fac Low Low Fac Gar Fac Turns Passed 3739 | 78 522 137 379 260 297 245 350 43 372 208 848 Spaces Moved 4092 | 45 285 78 232 154 343 507 735 110 652 222 729 Core 49 | 3 . . . . . . . . . 22 24 Treads 1198 | 42 285 78 232 154 . . . . . . 407 Legs . | . . . . . . . . . . . . Wheels . | . . . . . . . . . . . . Hover . | . . . . . . . . . . . . Flight 2845 | . . . . . 343 507 735 110 652 200 298 Fastest Speed 30 | 50 160 160 160 160 50 39 39 39 39 30 35 Average Speed 75 | 154 160 160 160 160 50 39 39 39 39 36 105 Slowest Speed 200 | 160 160 160 160 160 50 39 39 39 39 200 160 Overloaded Moves . | . . . . . . . . . . . . Propulsion Burnouts . | . . . . . . . . . . . . Robots Hopped 22 | . . . . . 5 3 2 1 3 3 5 Cave-ins Triggered . | . . . . . . . . . . . . Exploration Rate (%) 30 | 4 44 23 42 39 31 11 89 18 22 31 13 Regions Visited 11 Branch Regions 5 Pre-discovered Areas 2 | . . . . . . . 2 . . . . Known Exits Taken 2 | . 1 . . . . . . . 1 . . Unknown Exits Taken 8 | 1 . 1 1 1 1 1 1 1 . . . Scrap Searched 4 | . . . . 1 . . 3 . . . . Spaces Dug 11 | . . . . . 2 . . . 4 5 . Terrain Destroyed 53 | . 18 . . . 2 . 3 . 4 26 . Melee 11 | . . . . . 2 . . . 4 5 . Projectile 3 | . . . . . . . 3 . . . . AOE 39 | . 18 . . . . . . . . 21 . Terrain Rammed . | . . . . . . . . . . . . Walls Destroyed . | . . . . . . . . . . . . Machines Disabled . | . . . . . . . . . . . . Actions | -11 -10 -10 -10 -9 -8 -7 -7 -7 -6 -6 -6 --------- Run | Yrd Mat Min Exi Min Mat Fac Low Low Fac Gar Fac Total 4491 | 50 317 83 242 159 416 538 763 108 731 309 775 Wait 100 | . 6 . . . 22 7 12 . 35 2 16 Move 4037 | 44 284 77 231 153 333 500 730 107 645 214 719 Hop 21 | . . . . . 4 3 2 1 3 3 5 Pick Up 30 | . 6 1 3 . 4 6 . . 6 . 4 Fast Attach 24 | 6 1 . . 1 4 . . . . 1 11 Attach 19 | . . . 2 . 1 4 . . 4 5 3 Detach 6 | . 1 . . . . . . . 3 2 . Swap 26 | . . 1 1 . 10 4 2 . 5 2 1 Drop 38 | . . . 5 . 11 7 1 . 8 4 2 Fire 104 | . 19 4 . 5 21 7 16 . 17 4 11 Melee 34 | . . . . . 6 . . . 5 23 . Ram . | . . . . . . . . . . . . Kick . | . . . . . . . . . . . . Crush 3 | . . . . . . . . . . . 3 Escape Stasis 49 | . . . . . . . . . . 49 . Rewire . | . . . . . . . . . . . . Trap . | . . . . . . . . . . . . Miscellaneous . | . . . . . . . . . . . . Route ------- -11/Scrapyard -10/Materials (discovered 2 exits: [*Mat] / *Min) -10/Mines -10/Exiles -9/Mines -8/Materials -7/Factory -7/Lower Caves -7/Lower Caves -6/Factory (discovered 2 exits: [*Low] / Gar) -6/Garrison -6/Factory History --------- Turn | Location | Event 15 | -11/Scrapyard | Discovered new exit (range 14) 79 | -11/Scrapyard | Entered Materials 247 | -10/Materials | Identified exit to Mines 314 | -10/Materials | Build established: Mutant 472 | -10/Materials | Discovered new exit (range 20) 601 | -10/Materials | Entered Mines 666 | -10/Mines | Assembled infested the area 732 | -10/Mines | Discovered new exit (range 5) 738 | -10/Mines | Entered Exiles 761 | -10/Exiles | Discovered new exit (range 15) 778 | -10/Exiles | Met 8R-AWN 802 | -10/Exiles | Met EX-HEX 860 | -10/Exiles | Met EX-BIN 889 | -10/Exiles | Aligned with FarCom system 890 | -10/Exiles | Given EX-Vault access code 932 | -10/Exiles | Opened EX-Vault 942 | -10/Exiles | Found Prototype Device 943 | -10/Exiles | Identified Trap Reconfigurator 951 | -10/Exiles | Found Prototype Energy Cannon 952 | -10/Exiles | Identified Gui. Plasma Cannon 958 | -10/Exiles | Found Prototype Flight Unit 995 | -10/Exiles | Warned to stay clear of 0b10 Research branches 1117 | -10/Exiles | Left Exiles lab with Flying Fortress v7 1117 | -10/Exiles | Entered Mines 1131 | -9/Mines | Met a Derelict bent on vengeance 1311 | -9/Mines | Found a damaged Exp. Sensor Array with a note attached 1314 | -9/Mines | Found Prototype Device 1314 | -9/Mines | Identified Exp. Sensor Array 1326 | -9/Mines | Discovered new exit (range 11) 1377 | -9/Mines | Entered Materials 1377 | -8/Materials | Evolved 4 slots: Propulsion x2, Utility x2 1379 | -8/Materials | Identified Flying Fortress v7 1658 | -8/Materials | Discovered new exit (range 14) 1674 | -8/Materials | Entered Factory 1674 | -7/Factory | Evolved 2 slots: Power x1, Propulsion x1 1703 | -7/Factory | Build established: Scout 1885 | -7/Factory | Discovered new exit (range 7) 1919 | -7/Factory | Entered Lower Caves 1921 | -7/Lower Caves | Learned location of Zion (-6) 2014 | -7/Lower Caves | A Commander dispatched an escort 2021 | -7/Lower Caves | Learned 8 Factory zone layouts 2021 | -7/Lower Caves | Learned Research trap positions 2021 | -7/Lower Caves | Learned Extension stockpile data 2021 | -7/Lower Caves | Learned Factory security intel 2043 | -7/Lower Caves | Encountered a Warlord checkpoint 2215 | -7/Lower Caves | Build established: Mutant 2265 | -7/Lower Caves | Discovered new exit (range 4) 2269 | -7/Lower Caves | Entered another Lower Caves area 2269 | -7/Lower Caves | Accompanied by 2 allies 2270 | -7/Lower Caves | Commander's escort returned to base 2270 | -7/Lower Caves | Commander's escort returned to base 2270 | -7/Lower Caves | Encountered a Warlord checkpoint 2282 | -7/Lower Caves | Discovered new exit (range 10) 2300 | -7/Lower Caves | Learned Factory garrison access intel 2312 | -7/Lower Caves | Entered Factory 2312 | -6/Factory | Evolved 2 slots: Utility x2 2315 | -6/Factory | Loaded intel: 4 garrison access locations 2317 | -6/Factory | Discovered new exit (range 13) 2662 | -6/Factory | First assault squad dispatched 2682 | -6/Factory | Identified exit to Garrison 2684 | -6/Factory | Entered Garrison 2746 | -6/Garrison | Garrison Relay disabled 2752 | -6/Garrison | Triggered checkpoint 2841 | -6/Garrison | Spotted B-75 Beast 2842 | -6/Garrison | Triggered checkpoint 2844 | -6/Garrison | System corruption reached 10% 2873 | -6/Garrison | Core integrity fell below 50% 2882 | -6/Garrison | Core integrity fell below 20% 2888 | -6/Garrison | Discovered new exit (range 9) 2892 | -6/Garrison | Entered Factory 2914 | -6/Factory | Lost 4 parts (1p2n1u) 3608 | -6/Factory | Released all parts (8) 3639 | -6/Factory | Lost 3 parts (3u) 3738 | -6/Factory | Spotted B-75 Beast 3740 | -6/Factory | Destroyed by B-75 Beast with Heavy Machine Gun Last Messages --------------- 03612_ %%6LSAFYB2IB